fUSD/lending_fUSD_20240625
["ID","MTS","AMOUNT","RATE_DAILY","PERIOD"]
[330362668,1719334079755,-4066.30044907,0.00043854,30]
[330362669,1719334079785,-199.11869225,0.00043908,30]
[330362670,1719334079816,-155.177234,0.0004409,30]
[330362671,1719334079846,-336.89476887,0.00044123,30]
[330362672,1719334079877,-155.177234,0.00044128,30]
[330362673,1719334079908,-178.28346293,0.00044163,30]
[330362674,1719334079940,-571.91690735,0.0004426,30]
[330362675,1719334079970,-747.74115056,0.00044269,30]
[330362676,1719334080000,-405.57049422,0.00044539,30]
[330362677,1719334080036,-405.57049422,0.00044547,30]
[330362678,1719334080072,-152.23516054,0.00044596,30]
[330362679,1719334080106,-336.89476887,0.0004471,30]
[330362680,1719334080139,-152.23516054,0.00044881,30]
[330362681,1719334080182,-767778.67543794,0.00045,90]
[330362682,1719334080222,-15000.0,0.00045,92]
[330362683,1719334080263,-341.26775047,0.00045,120]
[330362684,1719334080307,-1244.13661201,0.00045,90]
[330362685,1719334080348,-592.69334862,0.00045,30]
[330362686,1719334080384,-1200.95520258,0.00045,120]
[330362687,1719334080429,-156.23194071,0.00045003,30]
[330362688,1719334080471,-1000.0,0.0004501,30]
[330362689,1719334080514,-150.0,0.00045035,30]
[330362690,1719334080560,-156.23194071,0.00045051,30]
[330362691,1719334080602,-156.36496914,0.00045098,30]
[330362692,1719334080647,-156.23194071,0.00045098,30]
[330362693,1719334080685,-150.0,0.00045111,30]
[330362694,1719334080723,-1380.6233,0.0004514,30]
[330362695,1719334080764,-150.0,0.00045145,120]
[330362696,1719334080804,-156.23194071,0.00045145,30]
[330362697,1719334080840,-1039.0,0.0004515,30]
[330362698,1719334080878,-1000.0,0.00045166,30]
[330362699,1719334080916,-1702.05137702,0.00045167,30]
[330362700,1719334080952,-150.0,0.00045187,30]
[330362701,1719334080991,-156.23194071,0.00045193,30]
[330362702,1719334081031,-790.95647029,0.000452,21]
[330362703,1719334081074,-8007.05,0.00045205,120]
[330362704,1719334081116,-5101.5,0.00045205,120]
[330362705,1719334081156,-500.0,0.00045216,30]
[330362706,1719334081195,-178.28346293,0.00045219,30]
[330362707,1719334081234,-156.23194071,0.0004524,30]
[330362708,1719334081277,-150.0,0.00045262,30]
[330362709,1719334081338,-154.75344803,0.00045269,30]
[330362710,1719334081398,-156.23194071,0.00045287,30]
[330362711,1719334081453,-150.0,0.00045287,30]
[330362712,1719334081507,-1000.0,0.00045323,120]
[330362713,1719334081561,-1000.0,0.00045323,30]
[330362714,1719334081614,-156.36496919,0.00045327,30]
[330362715,1719334081666,-156.23194071,0.00045335,30]
[330362716,1719334081722,-150.0,0.00045338,30]
[330362717,1719334081766,-250.0,0.00045369,100]
[330362718,1719334081806,-178.28346293,0.00045376,30]
[330362719,1719334081844,-156.23194071,0.00045382,30]
[330362720,1719334081888,-255.92352732,0.000454,120]
[330362721,1719334081924,-150.0,0.00045413,30]
[330362722,1719334081956,-156.23194071,0.00045429,30]
[330362723,1719334081993,-157.062508,0.00045438,76]
[330362724,1719334082032,-157.062508,0.00045438,77]
[330362725,1719334082066,-157.062508,0.00045438,78]
[330362726,1719334082101,-157.062508,0.00045438,84]
[330362727,1719334082136,-157.062508,0.00045438,85]
[330362728,1719334082173,-157.062508,0.00045438,86]
[330362729,1719334082206,-336.89476887,0.00045447,30]
[330362730,1719334082240,-3276.06768194,0.00045448,91]
[330362731,1719334082277,-2000000.0,0.00045469,120]
[330362732,1719334082312,-222.92143936,0.00045471,30]
[330362733,1719334082350,-156.23194071,0.00045477,30]
[330362734,1719334082383,-1000.0,0.00045478,120]
[330362735,1719334082418,-8007.05,0.00045479,120]
[330362736,1719334082451,-5101.5,0.00045479,120]
[330362737,1719334082484,-1000.0,0.00045479,30]
[330362738,1719334082518,-150.0,0.00045489,30]
[330362739,1719334082554,-500.0,0.0004549,30]
[330362740,1719334082587,-171.38830675,0.000455,90]
[330362741,1719334082619,-156.23194071,0.00045524,30]
[330362742,1719334082651,-355.91276097,0.00045531,30]
[330362743,1719334082682,-406.41428464,0.0004556,30]
[330362744,1719334082716,-150.0,0.00045564,30]
[330362745,1719334082753,-156.23194071,0.00045571,30]
[330362746,1719334082788,-155.177234,0.00045613,30]
[330362747,1719334082820,-151.0,0.00045616,120]
[330362748,1719334083046,-156.23194071,0.00045619,30]
[330362749,1719334083079,-336.89476887,0.00045622,30]
[330362750,1719334083110,-155.69335686,0.0004563,30]
[330362751,1719334083144,-154.75344803,0.00045634,30]
[330362752,1719334083177,-1000.0,0.00045636,30]
[330362753,1719334083210,-500.0,0.00045639,30]
[330362754,1719334083245,-150.0,0.0004564,30]
[330362755,1719334083279,-178.28346293,0.00045657,30]
[330362756,1719334083315,-156.23194071,0.00045666,30]
[330362757,1719334083349,-178.28346293,0.00045695,30]
[330362758,1719334083382,-155.80098944,0.00045697,30]
[330362759,1719334083416,-172.18888889,0.00045699,120]
[330362760,1719334083450,-156.23194071,0.00045713,30]
[330362761,1719334083485,-150.0,0.00045716,30]
[330362762,1719334083520,-155.80098944,0.00045721,30]
[330362763,1719334083559,-8007.05,0.00045753,120]
[330362764,1719334083594,-5101.5,0.00045753,120]
[330362765,1719334083630,-156.23194071,0.00045761,30]
[330362766,1719334083665,-500.0,0.00045764,30]
[330362767,1719334083702,-199.11869225,0.00045767,30]
[330362768,1719334083737,-222.92143936,0.00045781,30]
[330362769,1719334083773,-150.0,0.00045791,30]
[330362770,1719334083806,-1000.0,0.00045793,30]
[330362771,1719334083844,-156.23194071,0.00045808,30]
[330362772,1719334083879,-747.74115056,0.00045815,30]
[330362773,1719334083912,-156.23194071,0.00045855,30]
[330362774,1719334083948,-151.92007357,0.0004586,30]
[330362775,1719334083981,-150.0,0.00045867,30]
[330362776,1719334084017,-637.06006097,0.000459,120]
[330362777,1719334084055,-155.1898626,0.000459,120]
[330362778,1719334084088,-760.06700782,0.000459,33]
[330362779,1719334084121,-156.23194071,0.00045903,30]
[330362780,1719334084154,-150.0,0.00045942,30]
[330362781,1719334084188,-1000.0,0.00045949,30]
[330362782,1719334084220,-156.23194071,0.0004595,30]
[330362783,1719334084252,-156.23194071,0.00045997,30]
[330362784,1719334084287,-50000.0,0.00046,36]
[330362785,1719334084319,-167.7,0.00046,96]
[330362786,1719334084352,-1000.0,0.00046,30]
[330362787,1719334084385,-195.0,0.00046,120]
[330362788,1719334084417,-750.0,0.00046,120]
[330362789,1719334084451,-250000.0,0.00046,60]
[330362790,1719334084483,-1600.0,0.00046,30]
[330362791,1719334084514,-9201.60936172,0.00046,90]
[330362792,1719334084547,-11485.0,0.00046,120]
[330362793,1719334084579,-5111.27718012,0.00046,120]
[330362794,1719334084610,-500.0,0.00046,30]
[330362795,1719334084642,-500.0,0.00046,30]
[330362796,1719334084675,-1000000.0,0.00046,50]
[330362797,1719334084707,-767760.79389169,0.00046,60]
[330362798,1719334105693,8038.02617107,0.00013049,2]
[330362799,1719334105716,10000.0,0.00013049,2]
[330362800,1719334105740,10000.0,0.00013049,2]
[330362801,1719334105763,4782.97382893,0.00013049,2]
[330362802,1719334155761,1000.0,0.00012092,2]
[330362803,1719334156261,576.78,0.00013257,2]
[330362804,1719334208198,250.0,0.00012092,2]
[330362811,1719334231929,-150.0,0.00013564,2]
[330362812,1719334231940,-1000.0,0.00013604,2]
[330362813,1719334231950,-28.3057851,0.00013815,2]
[330362814,1719334231962,-365.07287543,0.00013815,2]
[330362815,1719334231972,-300.0,0.00013899,2]
[330362816,1719334231981,-435.10434192,0.000139,2]
[330362817,1719334231991,-1683.65979898,0.000139,2]
[330362818,1719334232025,-1066.63870102,0.000139,2]
[330362819,1719334232035,-3020.89502003,0.000139,2]
[330362820,1719334232049,-7028.89931554,0.000139,2]
[330362821,1719334232084,-758.77637409,0.000139,2]
[330362822,1719334232096,-267.23393513,0.000139,2]
[330362823,1719334232108,-1728.0087192,0.000139,2]
[330362824,1719334237714,-454.67894768,0.000139,2]
[330362825,1719334237726,-539.1790548,0.000139,2]
[330362826,1719334237738,-519.7933878,0.000139,2]
[330362827,1719334237749,-4552.6012,0.000139,2]
[330362828,1719334237760,-10315.26684458,0.000139,2]
[330362829,1719334237772,-3186.29266696,0.000139,2]
[330362830,1719334237785,-901.37718854,0.000139,2]
[330362831,1719334237797,-800.0,0.000139,2]
[330362832,1719334237808,-3360.28349679,0.000139,2]
[330362833,1719334237819,-300.11965555,0.000139,2]
[330362834,1719334237832,-1522.57839701,0.000139,2]
[330362835,1719334237844,-10744.0157963,0.000139,2]
[330362836,1719334237853,-1251.85328804,0.00013999,2]
[330362837,1719334237863,-32785.84522839,0.00014,2]
[330362838,1719334237984,-869.19947107,0.00014,2]
[330362839,1719334238012,-3651.72322707,0.00014,2]
[330362841,1719334238024,-318.85029718,0.00014,2]
[330362843,1719334238036,-14182.0,0.00014,2]
[330362846,1719334238049,-76618.0712965,0.00014,2]
[330362847,1719334238061,-4468.57904239,0.00014,2]
[330362848,1719334238073,-1706.12723868,0.00014,2]
[330362852,1719334238108,-139059.58336871,0.00014,2]
[330362854,1719334238118,-250.0,0.00014066,2]
[330362856,1719334238130,-200.0,0.00014093,2]
[330362858,1719334238140,-150.0,0.00014137,2]
[330362860,1719334238151,-150.0,0.00014303,2]
[330362862,1719334238162,-169.94,0.00014303,2]
[330362863,1719334238171,-4.06981212,0.00014416,2]
[330362864,1719334238184,-2299.03800928,0.00014416,2]
[330362865,1719334238196,-442.25,0.00014416,2]
[330362866,1719334238212,-1644.2883817,0.00014416,2]
[330362867,1719334238224,-3494.3737969,0.00014416,2]
[330362868,1719334238234,-435.1043419,0.00014658,2]
[330362869,1719334238244,-243.93,0.00014684,2]
[330362870,1719334238254,-220.02,0.00014904,3]
[330362871,1719334238264,-200.0,0.00014913,2]
[330362872,1719334238274,-114.91278288,0.00015,2]
[330362873,1719334238287,-94178.37830526,0.00015,2]
[330362874,1719334238303,-28671.20723251,0.00015,2]
[330362880,1719334239774,-510.98056953,0.00015,2]
[330362881,1719334239858,-17147.13099495,0.00015,2]
[330362882,1719334239870,-41075.33887126,0.00015,2]
[330362883,1719334239883,-3137.59487043,0.00015,2]
[330362884,1719334239895,-3602.21195516,0.00015,2]
[330362885,1719334239906,-4128.63986883,0.00015,2]
[330362886,1719334239923,-3933.36463944,0.00015,2]
[330362887,1719334239935,-4432.26839026,0.00015,2]
[330362888,1719334239946,-6757.96750055,0.00015,2]
[330362889,1719334239959,-38995.22785513,0.00015,2]
[330362890,1719334239970,-1617.592005,0.00015,2]
[330362891,1719334239982,-1363.68834929,0.00015,2]
[330362892,1719334239996,-2023.404,0.00015,2]
[330362893,1719334240009,-1641.30252,0.00015,2]
[330362894,1719334240021,-647.94517802,0.00015,2]
[330362895,1719334240032,-8927.79472324,0.00015,2]
[330362896,1719334240042,-1000.0,0.00015116,2]
[330362897,1719334240052,-420.0,0.00015229,2]
[330362898,1719334240062,-669.0,0.000153,2]
[330362899,1719334240072,-3002.0,0.000153,2]
[330362900,1719334240081,-435.1043419,0.00015416,2]
[330362901,1719334240091,-175.53550518,0.0001552,2]
[330362902,1719334240101,-576.78,0.00015521,2]
[330362903,1719334240110,-529.88213633,0.00015798,2]
[330362904,1719334240119,-155.0,0.00016069,2]
[330362905,1719334240128,-411.27901864,0.00016069,2]
[330362906,1719334240139,-435.1043419,0.00016174,2]
[330362907,1719334240148,-155.8,0.00016438,2]
[330362908,1719334240157,-1000.0,0.00016627,2]
[330362909,1719334240166,-587.0,0.00016686,2]
[330362910,1719334240175,-169.94,0.00016687,2]
[330362911,1719334240184,-435.1043419,0.00016932,2]
[330362912,1719334240194,-155.8,0.00017034,2]
[330362913,1719334240204,-170.75,0.00017097,2]
[330362914,1719334240213,-4692.73597631,0.0001726,2]
[330362917,1719334240587,-1079.800005,0.0001726,2]
[330362918,1719334240599,-2892.51594416,0.0001726,2]
[330362919,1719334240608,-155.8,0.00017629,2]
[330362920,1719334240618,-435.1043419,0.00017689,2]
[330362921,1719334240628,-181.22,0.00017703,2]
[330362922,1719334240639,-576.78,0.00017785,2]
[330362923,1719334240648,-499.99,0.00017808,2]
[330362924,1719334240658,-1000.0,0.00018139,2]
[330362925,1719334240667,-155.8,0.00018225,2]
[330362926,1719334240677,-823.0,0.00018282,2]
[330362927,1719334240686,-400.0,0.000184,6]
[330362928,1719334240697,-435.1043419,0.00018447,2]
[330362929,1719334240707,-800.0,0.000185,6]
[330362930,1719334240716,-1411.0,0.000186,2]
[330362931,1719334240726,-1200.0,0.000186,6]
[330362932,1719334240736,-1700.0,0.000187,6]
[330362933,1719334240746,-150.0,0.00018728,2]
[330362934,1719334240756,-2100.0,0.000188,6]
[330362935,1719334240766,-155.8,0.00018821,2]
[330362936,1719334240775,-400.0,0.000189,6]
[330362937,1719334240784,-1559.28731,0.0001897,2]
[330362938,1719334240793,-210.01901731,0.00018985,2]
[330362939,1719334240804,-3975.4863,0.00018986,2]
[330362940,1719334240813,-1000.0,0.00019009,2]
[330362941,1719334240823,-500.0,0.00019009,2]
[330362942,1719334240832,-200.0,0.00019009,2]
[330362943,1719334240841,-155.0,0.00019009,2]
[330362944,1719334240851,-155.0,0.00019009,2]
[330362945,1719334240860,-684.3304205,0.00019009,2]
[330362946,1719334240870,-200.0,0.0001901,2]
[330362947,1719334240879,-1000.0,0.0001901,2]
[330362948,1719334240889,-500.0,0.0001901,2]
[330362949,1719334240898,-500.0,0.0001901,2]
[330362950,1719334240907,-200.0,0.0001901,2]
[330362951,1719334240918,-155.0,0.00019026,2]
[330362952,1719334240930,-155.0,0.00019027,2]
[330362953,1719334240939,-169.94,0.00019071,2]
[330362954,1719334240948,-395.45441969,0.00019076,2]
[330362955,1719334240958,-520.06850352,0.00019076,2]
[330362956,1719334240967,-1004.43127475,0.00019077,3]
[330362957,1719334240979,-303.27304,0.00019077,3]
[330362958,1719334241055,-6018.65797163,0.00019077,3]
[330362959,1719334241064,-35961.40712203,0.00019077,3]
[330362960,1719334241073,-183.81698287,0.00019078,2]
[330362961,1719334241082,-164.98878452,0.00019078,2]
[330362962,1719334241091,-1692.87246233,0.00019078,2]
[330362963,1719334241101,-2384.93165062,0.00019078,2]
[330362964,1719334241112,-778.64096614,0.00019078,2]
[330362965,1719334241123,-1895.38707892,0.00019078,2]
[330362966,1719334241133,-12737.71635939,0.00019078,2]
[330362967,1719334241141,-13340.3758193,0.00019078,2]
[330362968,1719334241152,-5093.30444325,0.00019078,2]
[330362969,1719334241172,-45021.01653745,0.00019078,2]
[330362970,1719334241182,-202.05047868,0.00019173,2]
[330362971,1719334241191,-296.56181456,0.00019177,2]
[330362972,1719334241200,-625.2,0.00019177,2]
[330362973,1719334241209,-643.0,0.00019178,2]
[330362974,1719334241220,-500.0,0.00019178,2]
[330362975,1719334241230,-500.0,0.00019178,2]
[330362976,1719334241241,-500.0,0.00019178,2]
[330362977,1719334241250,-336.73193479,0.00019178,2]
[330362978,1719334241259,-500.0,0.00019178,2]
[330362979,1719334241268,-500.0,0.00019178,2]
[330362980,1719334241278,-500.0,0.00019178,2]
[330362981,1719334241287,-500.0,0.00019178,2]
[330362982,1719334241296,-500.0,0.00019178,2]
[330362983,1719334241306,-500.0,0.00019178,2]
[330362984,1719334241315,-500.0,0.00019178,2]
[330362985,1719334241324,-500.0,0.00019178,2]
[330362986,1719334241333,-500.0,0.00019178,2]
[330362987,1719334241343,-500.0,0.00019178,2]
[330362988,1719334241352,-586.1912409,0.00019178,2]
[330362989,1719334241362,-500.0,0.00019178,2]
[330362990,1719334241371,-500.0,0.00019178,2]
[330362991,1719334241380,-500.0,0.00019178,2]
[330362992,1719334241390,-501.41745038,0.00019178,2]
[330362993,1719334241399,-500.43115602,0.00019178,2]
[330362994,1719334241408,-500.0,0.00019178,2]
[330362995,1719334241417,-500.0,0.00019178,2]
[330362996,1719334241426,-500.0,0.00019178,2]
[330362997,1719334241436,-613.76570561,0.00019178,2]
[330362998,1719334241445,-500.79336044,0.00019178,2]
[330362999,1719334241455,-500.0,0.00019178,2]
[330363000,1719334241464,-500.0,0.00019178,2]
[330363001,1719334241473,-500.0,0.00019178,2]
[330363002,1719334241482,-423.05438075,0.00019178,2]
[330363003,1719334241491,-500.0,0.00019178,2]
[330363004,1719334241501,-504.27204091,0.00019178,2]
[330363005,1719334241510,-541.11596169,0.00019178,2]
[330363006,1719334241520,-500.0,0.00019178,2]
[330363007,1719334241529,-500.0,0.00019178,2]
[330363008,1719334241538,-515.1695448,0.00019178,2]
[330363009,1719334241547,-500.0,0.00019178,2]
[330363010,1719334241557,-500.0,0.00019178,2]
[330363011,1719334241566,-500.0,0.00019178,2]
[330363012,1719334241575,-489.56589246,0.00019178,2]
[330363013,1719334241584,-500.0,0.00019178,2]
[330363014,1719334241593,-500.0,0.00019178,2]
[330363015,1719334241603,-500.0,0.00019178,2]
[330363016,1719334241612,-516.33613468,0.00019178,2]
[330363017,1719334241622,-527.9365592,0.00019178,2]
[330363018,1719334241631,-500.0,0.00019178,2]
[330363019,1719334241642,-500.0,0.00019178,2]
[330363020,1719334241651,-500.0,0.00019178,2]
[330363021,1719334241661,-533.94722391,0.00019178,2]
[330363022,1719334241671,-500.0,0.00019178,2]
[330363023,1719334241680,-512.37658293,0.00019178,2]
[330363024,1719334241690,-500.0,0.00019178,2]
[330363025,1719334241699,-500.0,0.00019178,2]
[330363026,1719334241709,-299.09293727,0.00019178,2]
[330363027,1719334241718,-500.0,0.00019178,2]
[330363028,1719334241727,-500.0,0.00019178,2]
[330363029,1719334241737,-500.0,0.00019178,2]
[330363030,1719334241746,-500.0,0.00019178,2]
[330363031,1719334241755,-500.0,0.00019178,2]
[330363032,1719334241765,-635.32786387,0.00019178,2]
[330363033,1719334241774,-500.0,0.00019178,2]
[330363034,1719334241785,-920.42,0.00019178,2]
[330363035,1719334241794,-500.0,0.00019178,2]
[330363036,1719334241804,-500.0,0.00019178,2]
[330363037,1719334241813,-2957.71,0.00019178,2]
[330363038,1719334241822,-500.0,0.00019178,2]
[330363039,1719334241831,-500.0,0.00019178,2]
[330363040,1719334241840,-500.0,0.00019178,2]
[330363041,1719334241849,-503.13331493,0.00019178,2]
[330363042,1719334241858,-500.0,0.00019178,2]
[330363043,1719334241867,-500.0,0.00019178,2]
[330363044,1719334241876,-500.0,0.00019178,2]
[330363045,1719334241887,-500.0,0.00019178,2]
[330363046,1719334241896,-999.63,0.00019178,2]
[330363047,1719334241904,-500.0,0.00019178,2]
[330363048,1719334241914,-500.0,0.00019178,2]
[330363049,1719334241928,-510.21,0.00019178,2]
[330363050,1719334241938,-500.0,0.00019178,2]
[330363051,1719334241947,-500.0,0.00019178,2]
[330363052,1719334241956,-500.0,0.00019178,2]
[330363053,1719334241967,-500.0,0.00019178,2]
[330363054,1719334241976,-500.0,0.00019178,2]
[330363055,1719334241986,-500.0,0.00019178,2]
[330363056,1719334241995,-789.26,0.00019178,2]
[330363057,1719334242005,-500.0,0.00019178,2]
[330363058,1719334242017,-1001.15,0.00019178,2]
[330363059,1719334242026,-151.0,0.00019178,2]
[330363060,1719334242036,-500.0,0.00019178,2]
[330363061,1719334242046,-613.79,0.00019178,2]
[330363062,1719334242056,-500.0,0.00019178,2]
[330363063,1719334242066,-3280.63,0.00019178,2]
[330363064,1719334242076,-728.24,0.00019178,2]
[330363065,1719334242085,-500.0,0.00019178,2]
[330363066,1719334242094,-500.0,0.00019178,2]
[330363067,1719334242103,-1103.27,0.00019178,2]
[330363068,1719334242112,-500.0,0.00019178,2]
[330363069,1719334242122,-852.4,0.00019178,2]
[330363070,1719334242132,-2000.0,0.00019178,2]
[330363071,1719334242143,-500.0,0.00019178,2]
[330363072,1719334242153,-500.0,0.00019178,2]
[330363073,1719334242162,-500.81799399,0.00019178,2]
[330363074,1719334242174,-500.0,0.00019178,2]
[330363075,1719334242184,-500.0,0.00019178,2]
[330363076,1719334242193,-500.0,0.00019178,2]
[330363077,1719334242203,-505.05,0.00019178,2]
[330363078,1719334242212,-500.0,0.00019178,2]
[330363079,1719334242221,-348.14623883,0.00019178,2]
[330363080,1719334242230,-500.0,0.00019178,2]
[330363081,1719334242240,-500.0,0.00019178,2]
[330363082,1719334242250,-500.0,0.00019178,2]
[330363083,1719334242259,-500.0,0.00019178,2]
[330363084,1719334242269,-500.0,0.00019178,2]
[330363085,1719334242279,-500.0,0.00019178,2]
[330363086,1719334242289,-500.0,0.00019178,2]
[330363087,1719334242300,-500.0,0.00019178,2]
[330363088,1719334242310,-500.0,0.00019178,2]
[330363089,1719334242319,-500.0,0.00019178,2]
[330363090,1719334242330,-500.0,0.00019178,2]
[330363091,1719334242340,-713.05,0.00019178,2]
[330363092,1719334242350,-613.74735338,0.00019178,2]
[330363093,1719334242359,-500.0,0.00019178,2]
[330363094,1719334242368,-916.81,0.00019178,2]
[330363095,1719334242378,-500.0,0.00019178,2]
[330363096,1719334242390,-500.0,0.00019178,2]
[330363097,1719334242398,-728.65,0.00019178,2]
[330363098,1719334242407,-500.0,0.00019178,2]
[330363099,1719334242416,-500.0,0.00019178,2]
[330363100,1719334242425,-500.0,0.00019178,2]
[330363101,1719334242434,-500.0,0.00019178,2]
[330363102,1719334242443,-500.0,0.00019178,2]
[330363103,1719334242452,-783.04,0.00019178,2]
[330363104,1719334242461,-500.0,0.00019178,2]
[330363105,1719334242470,-500.0,0.00019178,2]
[330363106,1719334242480,-1119.12,0.00019178,2]
[330363107,1719334242490,-500.0,0.00019178,2]
[330363108,1719334242499,-512.90095868,0.00019178,2]
[330363109,1719334242509,-778.99,0.00019178,2]
[330363110,1719334242519,-762.64,0.00019178,2]
[330363111,1719334242528,-151.0,0.00019178,2]
[330363112,1719334242538,-500.0,0.00019178,2]
[330363114,1719334242547,-587.61,0.00019178,2]
[330363116,1719334242557,-500.0,0.00019178,2]
[330363118,1719334242566,-500.0,0.00019178,2]
[330363120,1719334242576,-500.0,0.00019178,2]
[330363122,1719334242585,-500.0,0.00019178,2]
[330363123,1719334242595,-500.0,0.00019178,2]
[330363125,1719334242604,-2781.5,0.00019178,2]
[330363127,1719334242614,-2970.2,0.00019178,2]
[330363129,1719334242623,-500.0,0.00019178,2]
[330363131,1719334242635,-500.0,0.00019178,2]
[330363133,1719334242645,-1989.26,0.00019178,2]
[330363135,1719334242654,-500.0,0.00019178,2]
[330363136,1719334242663,-604.3,0.00019178,2]
[330363137,1719334242673,-544.89,0.00019178,2]
[330363139,1719334242682,-500.0,0.00019178,2]
[330363142,1719334242691,-500.0,0.00019178,2]
[330363145,1719334242700,-1218.96,0.00019178,2]
[330363147,1719334242709,-500.0,0.00019178,2]
[330363150,1719334242719,-860.22,0.00019178,2]
[330363152,1719334242728,-500.0,0.00019178,2]
[330363153,1719334242737,-500.0,0.00019178,2]
[330363154,1719334242747,-717.2,0.00019178,2]
[330363155,1719334242756,-952.03,0.00019178,2]
[330363156,1719334242765,-500.0,0.00019178,2]
[330363157,1719334242775,-544.93,0.00019178,2]
[330363158,1719334242784,-500.0,0.00019178,2]
[330363159,1719334242794,-500.0,0.00019178,2]
[330363160,1719334242804,-500.0,0.00019178,2]
[330363161,1719334242813,-1959.12,0.00019178,2]
[330363162,1719334242823,-500.0,0.00019178,2]
[330363163,1719334242832,-507.80950282,0.00019178,2]
[330363164,1719334242842,-501.45639623,0.00019178,2]
[330363165,1719334242852,-1236.84,0.00019178,2]
[330363166,1719334242861,-500.0,0.00019178,2]
[330363167,1719334242871,-500.0,0.00019178,2]
[330363168,1719334242880,-500.0,0.00019178,2]
[330363169,1719334242894,-864.47,0.00019178,2]
[330363170,1719334242906,-500.0,0.00019178,2]
[330363171,1719334242918,-602.85966854,0.00019178,2]
[330363172,1719334242928,-928.27,0.00019178,2]
[330363173,1719334242938,-500.0,0.00019178,2]
[330363174,1719334242947,-500.0,0.00019178,2]
[330363175,1719334242958,-1336.46,0.00019178,2]
[330363176,1719334242967,-500.0,0.00019178,2]
[330363177,1719334242976,-500.0,0.00019178,2]
[330363178,1719334242986,-500.0,0.00019178,2]
[330363179,1719334242995,-586.8,0.00019178,2]
[330363180,1719334243006,-500.0,0.00019178,2]
[330363181,1719334243016,-500.0,0.00019178,2]
[330363182,1719334243026,-571.12,0.00019178,2]
[330363183,1719334243035,-500.0,0.00019178,2]
[330363184,1719334243045,-500.0,0.00019178,2]
[330363185,1719334243057,-528.65888406,0.00019178,2]
[330363186,1719334243066,-500.0,0.00019178,2]
[330363187,1719334243076,-500.0,0.00019178,2]
[330363188,1719334243085,-500.0,0.00019178,2]
[330363189,1719334243094,-685.27,0.00019178,2]
[330363190,1719334243103,-657.88,0.00019178,2]
[330363191,1719334243113,-1023.44,0.00019178,2]
[330363192,1719334243123,-1250.29,0.00019178,2]
[330363193,1719334243135,-500.0,0.00019178,2]
[330363194,1719334243145,-1309.6,0.00019178,2]
[330363195,1719334243154,-500.0,0.00019178,2]
[330363196,1719334243164,-500.0,0.00019178,2]
[330363197,1719334243173,-500.0,0.00019178,2]
[330363198,1719334243183,-649.72,0.00019178,2]
[330363199,1719334243192,-500.0,0.00019178,2]
[330363200,1719334243201,-780.94,0.00019178,2]
[330363201,1719334243211,-500.0,0.00019178,2]
[330363202,1719334243220,-2804.95,0.00019178,2]
[330363203,1719334243230,-563.35,0.00019178,2]
[330363204,1719334243239,-500.0,0.00019178,2]
[330363205,1719334243249,-500.0,0.00019178,2]
[330363206,1719334243259,-500.0,0.00019178,2]
[330363207,1719334243268,-500.0,0.00019178,2]
[330363208,1719334243278,-500.0,0.00019178,2]
[330363209,1719334243289,-1575.44,0.00019178,2]
[330363210,1719334243299,-500.0,0.00019178,2]
[330363211,1719334243309,-304.589088,0.00019178,2]
[330363212,1719334243319,-500.0,0.00019178,2]